bitfinex-derivatives/quotes_SOLF0:USTF0_20250626
["timestamp","ask_amount","ask_price","bid_price","bid_amount"]
[1750948962132,6.9741,143.33,143.31,6.9748]
[1750948962848,6.9736,143.34,143.31,6.9748]
[1750948963246,11.73725898,143.35,143.28,38.06]
[1750948963541,6.69705123,143.35,143.28,38.06]
[1750948963739,13.67015123,143.35,143.32,6.974]
[1750948963943,13.67015123,143.35,143.28,38.06]
[1750948963944,6.69705123,143.35,143.28,38.06]
[1750948964139,6.9738,143.33,143.3,6.9749]
[1750948964345,11.74029645,143.35,143.28,38.06]
[1750948964846,6.9735,143.34,143.31,6.9745]
[1750948965147,6.69705123,143.35,143.31,6.9745]
[1750948965349,6.974,143.33,143.3,6.975]
[1750948965743,6.974,143.33,143.3,6.9748]
[1750948965941,6.974,143.33,143.28,38.06]
[1750948966346,6.69705123,143.35,143.28,38.06]
[1750948967450,6.9745,143.32,143.29,6.9755]
[1750948967848,6.9745,143.32,143.28,38.06]
[1750948968039,6.69705123,143.35,143.28,38.06]
[1750948968240,42.8686,143.36,143.28,38.06]
[1750948968446,5.02575238,143.35,143.28,38.06]
[1750948968647,6.9738,143.33,143.3,6.9748]
[1750948969447,12.00620229,143.34,143.28,38.06]
[1750948969644,6.69705123,143.35,143.28,38.06]
[1750948969843,5.03311502,143.34,143.28,38.06]
[1750948970049,6.9737,143.34,143.31,6.9748]
[1750948970248,6.69705123,143.35,143.31,6.9748]
[1750948970452,5.03323271,143.34,143.31,6.9748]
[1750948970749,6.69705123,143.35,143.3,6.975]
[1750948970948,5.03533939,143.34,143.3,6.975]
[1750948971150,6.69705123,143.35,143.3,6.975]
[1750948971350,6.9742,143.33,143.3,6.975]
[1750948971753,6.9742,143.33,143.31,6.9747]
[1750948972252,42.8686,143.36,143.32,6.9739]
[1750948972840,6.9733,143.35,143.32,6.9739]
[1750948973441,42.8686,143.36,143.31,6.9745]
[1750948973649,42.8686,143.36,143.28,38.06]
[1750948973650,11.72951425,143.35,143.28,38.06]
[1750948973954,5.03246302,143.34,143.28,38.06]
[1750948974250,6.9741,143.33,143.3,6.9749]
[1750948975955,6.69705123,143.35,143.3,6.9749]
[1750948976656,42.8686,143.36,143.28,38.06]
[1750948976856,5.03379458,143.35,143.28,38.06]
[1750948977055,47.21975123,143.36,143.28,38.06]
[1750948977257,6.9741,143.33,143.31,6.9748]
[1750948978356,6.9736,143.34,143.32,6.9742]
[1750948978658,5.03379212,143.35,143.32,6.9742]
[1750948978861,49.61685123,143.36,143.32,6.9742]
[1750948979158,6.9736,143.34,143.28,44.75705123]
[1750948979550,6.973,143.35,143.28,44.75705123]
[1750948980255,20.97,143.45,143.28,44.75705123]
[1750948980256,38.08,143.39,143.3,4.4569007]
[1750948980456,42.5369007,143.4,143.32,4.4569007]
[1750948980661,47.53657763,143.4,143.34,6.9731]
[1750948980851,4.4569007,143.38,143.32,38.08]
[1750948981361,2.3747,143.39,143.32,38.08]
[1750948981663,38.08,143.4,143.33,4.4569007]
[1750948981958,6.9712,143.39,143.36,6.972]
[1750948982158,6.9712,143.39,143.33,4.4569007]
[1750948982660,2.3575,143.41,143.35,4.4569007]
[1750948982865,2.3575,143.41,143.38,6.9711]
[1750948983160,4.4569007,143.4,143.33,4.4569007]
[1750948983365,4.4569007,143.4,143.36,6.9719]
[1750948983672,6.9713,143.39,143.36,6.9719]
[1750948984064,2.3575,143.41,143.35,4.4569007]
[1750948984268,2.3575,143.41,143.35,6.68053824]
[1750948984467,6.9709,143.39,143.33,6.68053824]
[1750948985070,6.9706,143.4,143.37,6.9715]
[1750948985270,2.3575,143.41,143.33,6.68053824]
[1750948985669,6.9711,143.39,143.33,6.68053824]
[1750948986268,6.68053824,143.4,143.32,38.08]
[1750948986469,6.68053824,143.38,143.3,37.94]
[1750948986672,6.9726,143.36,143.3,37.94]
[1750948986871,37.94,143.39,143.31,6.68053824]
[1750948987168,6.9726,143.36,143.3,44.62053824]
[1750948987368,44.62053824,143.39,143.3,44.62053824]
[1750948987567,49.666796,143.39,143.3,44.62053824]
[1750948987767,6.9727,143.36,143.33,6.9735]
[1750948988466,13.65263824,143.37,143.34,6.9733]
[1750948988665,6.68053824,143.37,143.3,37.94]
[1750948989764,6.9732,143.35,143.3,37.94]
[1750948990173,6.9733,143.34,143.32,6.974]
[1750948990378,44.62053824,143.35,143.27,37.94]
[1750948990667,6.68053824,143.33,143.27,37.94]
[1750948990873,6.9745,143.32,143.3,6.975]
[1750948991271,13.65453824,143.33,143.3,6.975]
[1750948991866,6.974,143.33,143.3,6.975]
[1750948992070,6.974,143.33,143.31,6.9747]
[1750948992274,6.974,143.33,143.27,37.94]
[1750948992475,6.974,143.33,143.3,6.975]
[1750948992869,6.974,143.33,143.27,37.94]
[1750948993070,9.303,143.34,143.27,37.94]
[1750948993368,9.303,143.34,143.27,40.4015]
[1750948993567,6.9739,143.33,143.27,40.4015]
[1750948993969,2.3295,143.34,143.27,40.4015]
[1750948994168,2.3295,143.34,143.32,6.974]
[1750948995674,9.3028,143.34,143.32,6.974]
[1750948996272,9.3028,143.34,143.31,6.9745]
[1750948996470,6.9739,143.33,143.31,6.9745]
[1750948996868,9.3032,143.34,143.31,6.9745]
[1750948997574,6.9739,143.33,143.31,6.9745]
[1750948999178,2.3295,143.34,143.27,40.4015]
[1750948999480,2.3295,143.34,143.27,37.94]
[1750948999677,6.9748,143.31,143.29,6.9755]
[1750949000566,6.68053824,143.33,143.28,6.976]
[1750949000767,6.68053824,143.33,143.27,37.94]
[1750949001174,6.68053824,143.33,143.24,37.94]
[1750949001473,6.68053824,143.31,143.24,37.94]
[1750949001682,11.70389869,143.33,143.24,37.94]
[1750949001980,6.68053824,143.33,143.24,37.94]
[1750949002274,6.9753,143.3,143.27,6.9763]
[1750949002474,6.9753,143.3,143.24,44.62053824]
[1750949002680,6.68053824,143.33,143.24,44.62053824]
[1750949003067,6.975,143.31,143.29,6.9756]
[1750949005874,11.43482321,143.32,143.29,6.9756]
[1750949006077,4.46032321,143.32,143.29,6.9756]
[1750949006682,6.975,143.31,143.28,6.976]
[1750949008285,6.9753,143.3,143.28,6.976]
[1750949008677,4.46032321,143.32,143.27,6.9764]
[1750949008876,4.46032321,143.3,143.24,37.94]
[1750949009076,4.46032321,143.3,143.26,6.9769]
[1750949009383,4.46032321,143.3,143.24,37.94]
[1750949009681,6.77552321,143.3,143.24,6.978]
[1750949009876,4.46032321,143.28,143.24,6.978]
[1750949010079,6.9774,143.26,143.24,6.978]
[1750949010978,4.46032321,143.26,143.21,37.94]
[1750949011887,6.9781,143.25,143.22,6.9789]
[1750949012394,6.9784,143.24,143.19,4.46032321]
[1750949013684,6.9784,143.24,143.21,6.9792]
[1750949014876,4.46032321,143.26,143.18,44.67532321]
[1750949015074,4.46032321,143.24,143.18,40.215]
[1750949015278,4.46032321,143.24,143.2,6.9798]
[1750949015677,4.46032321,143.24,143.18,37.94]
[1750949016085,6.9787,143.23,143.21,6.9794]
[1750949016485,4.46032321,143.24,143.18,37.94]
[1750949016689,11.43872321,143.24,143.21,6.9792]
[1750949017988,6.9788,143.23,143.21,6.9792]
[1750949018390,6.9788,143.23,143.2,6.9799]
[1750949018889,6.9792,143.22,143.2,6.9799]
[1750949019185,4.46032321,143.22,143.16,4.46032321]
[1750949019591,4.46032321,143.22,143.15,37.8]
[1750949020182,7.20565243,143.26,143.18,4.46032321]
[1750949020490,4.46032321,143.25,143.18,4.46032321]
[1750949020684,2.2917,143.26,143.18,4.46032321]
[1750949020891,2.2917,143.26,143.19,37.82]
[1750949021189,37.82,143.27,143.26,6.9772]
[1750949021393,40.1352,143.3,143.22,4.46032321]
[1750949021782,6.9759,143.29,143.22,4.46032321]
[1750949022186,40.1352,143.3,143.22,4.46032321]
[1750949022494,6.9762,143.28,143.22,4.46032321]
[1750949022883,6.9762,143.28,143.25,6.9773]
[1750949023593,6.9762,143.28,143.26,6.9772]
[1750949023794,6.976,143.29,143.26,6.9772]
[1750949024295,6.9758,143.29,143.26,6.9772]
[1750949024695,40.1352,143.3,143.26,6.9772]
[1750949024884,6.9761,143.29,143.26,6.9772]
[1750949025789,6.9763,143.28,143.26,6.9772]
[1750949026586,6.9763,143.28,143.23,42.28032321]
[1750949026787,6.976,143.29,143.23,42.28032321]
[1750949026987,37.82,143.3,143.25,4.46032321]
[1750949027495,44.7954,143.3,143.25,4.46032321]
[1750949027697,37.82,143.3,143.28,6.9761]
[1750949028296,37.82,143.33,143.27,4.46032321]
[1750949028696,6.9749,143.31,143.27,4.46032321]
[1750949028888,4.46032321,143.32,143.24,4.46032321]
[1750949029090,6.71572321,143.32,143.24,4.46032321]
[1750949029288,6.9756,143.3,143.26,6.977]
[1750949029695,9.05712321,143.32,143.24,4.46032321]
[1750949029996,6.976,143.29,143.26,6.977]
[1750949030297,4.46032321,143.3,143.24,4.46032321]
[1750949030497,4.46032321,143.3,143.23,37.82]
[1750949030798,6.9767,143.28,143.23,37.82]
[1750949031399,6.9767,143.27,143.23,37.82]
[1750949031802,6.9767,143.27,143.24,6.9778]
[1750949032004,4.46032321,143.28,143.21,4.46032321]
[1750949032388,6.9774,143.26,143.23,6.9784]
[1750949034096,37.8,143.31,143.25,4.46032321]
[1750949034296,9.05712321,143.32,143.25,4.46032321]
[1750949034503,2.2554,143.32,143.3,6.975]
[1750949034702,2.2554,143.32,143.27,4.46032321]
[1750949035012,9.23,143.32,143.3,6.9751]
[1750949035307,2.2554,143.32,143.3,6.9751]
[1750949035507,6.9739,143.33,143.3,6.9751]
[1750949036402,51.70792321,143.34,143.31,6.9744]
[1750949036602,40.2199,143.37,143.29,4.46032321]
[1750949036908,49.63998299,143.37,143.29,4.46032321]
[1750949037208,6.9727,143.36,143.29,4.46032321]
[1750949037603,44.68022321,143.37,143.29,4.46032321]
[1750949037812,49.64002193,143.37,143.29,4.46032321]
[1750949038004,4.46032321,143.35,143.28,37.8]
[1750949038608,6.974,143.33,143.3,6.975]
[1750949040209,4.46032321,143.35,143.28,37.8]
[1750949040514,4.95979872,143.36,143.28,37.8]
[1750949040706,4.95979872,143.37,143.33,4.46032321]
[1750949040905,4.98008289,143.39,143.33,42.26032321]
[1750949041106,10.0253163,143.4,143.34,4.46032321]
[1750949041308,4.98008289,143.39,143.34,4.46032321]
[1750949041510,5.04523341,143.4,143.33,37.8]
[1750949041811,4.46032321,143.38,143.33,37.8]
[1750949042004,11.88825662,143.4,143.33,42.26032321]
[1750949042207,5.04523341,143.4,143.34,4.46032321]
[1750949043014,5.04523341,143.4,143.39,6.9709]
[1750949043604,5.04523341,143.4,143.38,6.9711]
[1750949044314,5.04523341,143.4,143.34,2.3706]
[1750949044616,5.04523341,143.4,143.33,37.8]
[1750949044809,42.84523341,143.4,143.34,6.9729]
[1750949045115,49.52683727,143.4,143.34,6.9729]
[1750949045315,6.9717,143.38,143.35,6.9727]
[1750949045522,42.84523341,143.4,143.33,44.48160386]
[1750949046017,6.971,143.39,143.35,6.9725]
[1750949046206,6.971,143.39,143.33,44.48160386]
[1750949047818,6.9714,143.38,143.33,44.48160386]
[1750949048115,42.84523341,143.4,143.33,37.8]
[1750949048312,6.9717,143.38,143.33,37.8]
[1750949048518,42.84523341,143.4,143.33,37.8]
[1750949049013,6.9719,143.37,143.34,6.973]
[1750949049211,42.84523341,143.4,143.34,6.973]
[1750949050016,6.9717,143.38,143.34,6.973]
[1750949050213,6.68160386,143.39,143.33,37.8]
[1750949050518,6.68160386,143.39,143.3,640.34]
[1750949051017,6.68160386,143.37,143.3,640.34]
[1750949051214,6.68160386,143.37,143.3,37.64]
[1750949051818,6.68160386,143.35,143.3,37.64]
[1750949052529,6.68160386,143.35,143.31,6.9744]
[1750949052530,6.9735,143.34,143.31,6.9744]
[1750949053110,37.64,143.36,143.3,37.64]
[1750949053722,44.6126,143.36,143.33,6.9735]
[1750949054025,37.64,143.36,143.3,37.64]
[1750949054223,6.9731,143.35,143.32,6.974]
[1750949054616,44.6125,143.36,143.33,6.9737]
[1750949054819,37.64,143.36,143.3,37.64]
[1750949055216,6.9729,143.35,143.32,6.974]
[1750949055929,37.64,143.36,143.3,37.64]
[1750949055930,44.6127,143.36,143.3,37.64]
[1750949056127,37.64,143.36,143.3,37.64]
[1750949056827,6.68160386,143.35,143.3,37.64]
[1750949057216,6.68160386,143.35,143.27,37.64]
[1750949057818,39.9358,143.36,143.32,6.9742]
[1750949058021,39.9358,143.36,143.28,6.68160386]
[1750949058528,46.9083,143.36,143.33,6.9738]
[1750949059117,6.9729,143.35,143.32,6.974]
[1750949059629,6.9732,143.35,143.32,6.974]
[1750949060222,6.9729,143.35,143.28,6.68160386]
[1750949060630,6.9729,143.35,143.32,6.974]
[1750949061130,6.9734,143.34,143.31,6.9744]
[1750949061337,6.68160386,143.35,143.31,6.9744]
[1750949061721,6.9735,143.34,143.31,6.9744]
[1750949061926,39.9358,143.36,143.33,6.9738]
[1750949062328,46.9084,143.36,143.33,6.9738]
[1750949062627,39.9358,143.36,143.35,6.9728]
[1750949062829,2.4024,143.39,143.35,6.9728]
[1750949062830,6.9716,143.38,143.35,6.9728]
[1750949063229,40.0424,143.39,143.36,6.9722]
[1750949063533,40.0424,143.39,143.31,37.64]
[1750949063534,47.0135,143.39,143.32,6.68160386]
[1750949063736,40.0424,143.39,143.32,6.68160386]
[1750949064036,47.0135,143.39,143.32,6.68160386]
[1750949064536,6.9714,143.38,143.36,6.9721]
[1750949064834,6.9714,143.38,143.35,6.9726]
[1750949065037,6.9714,143.38,143.32,6.68160386]
[1750949065038,6.9722,143.37,143.31,37.64]
[1750949065227,6.68160386,143.38,143.31,37.64]
[1750949065531,6.68160386,143.38,143.33,6.9734]
[1750949065725,6.9726,143.36,143.33,6.9734]
[1750949066539,6.9729,143.35,143.32,6.9742]
[1750949066727,4.45714455,143.37,143.32,6.9742]
[1750949066922,4.45714455,143.35,143.32,6.9742]
[1750949067129,11.43024455,143.35,143.32,6.9742]
[1750949067832,6.9734,143.34,143.32,6.9742]
[1750949068028,4.45714455,143.35,143.32,6.9742]
[1750949068235,6.9732,143.35,143.32,6.9742]
[1750949070042,6.9732,143.35,143.33,6.9738]
[1750949070540,11.7305,143.36,143.33,6.9738]
[1750949071042,40.0424,143.39,143.31,37.64]
[1750949071239,40.0424,143.39,143.31,44.32700704]
[1750949071634,6.9721,143.37,143.34,6.9732]
[1750949071835,40.0424,143.39,143.31,44.32700704]
[1750949072032,40.0424,143.39,143.35,6.9725]
[1750949072335,6.9717,143.38,143.35,6.9725]
[1750949073341,40.0424,143.39,143.31,44.32700704]
[1750949073549,51.70486266,143.39,143.31,37.64]
[1750949073844,6.68700704,143.37,143.32,6.974]
[1750949074646,2.2895,143.36,143.33,6.9737]
[1750949075243,2.2895,143.36,143.34,6.9733]
[1750949075446,9.2622,143.36,143.31,37.64]
[1750949075838,2.2895,143.36,143.31,37.64]
[1750949076240,6.68700704,143.35,143.28,37.64]
[1750949076548,6.9735,143.34,143.28,37.64]
[1750949076743,6.68700704,143.35,143.28,37.64]
[1750949077143,6.68700704,143.35,143.31,6.9745]
[1750949077545,6.9736,143.34,143.31,6.9745]
[1750949078245,4.7256,143.36,143.32,6.9742]
[1750949078447,2.2895,143.36,143.28,52.77877951]
[1750949078646,2.2895,143.36,143.32,6.9742]
[1750949078846,6.9731,143.35,143.32,6.9742]
[1750949079444,2.2895,143.36,143.31,6.9745]
[1750949079655,6.68700704,143.33,143.27,8.45177247]
[1750949079950,6.9751,143.31,143.25,48.45537247]
[1750949080255,6.68700704,143.33,143.26,8.45177247]
[1750949080757,6.68700704,143.33,143.29,6.9757]
[1750949080943,44.24700704,143.35,143.27,8.45177247]
[1750949081148,6.9747,143.32,143.27,8.45177247]
[1750949081455,6.9747,143.32,143.29,6.9755]
[1750949082042,6.9747,143.31,143.29,6.9755]
[1750949083058,6.9745,143.32,143.29,6.9755]
[1750949083249,6.9745,143.32,143.3,6.9752]
[1750949084855,6.9749,143.31,143.29,6.9755]
[1750949085155,6.68700704,143.33,143.24,46.01177247]
[1750949085358,6.9755,143.3,143.28,6.9761]
[1750949086056,6.975,143.31,143.28,6.9761]
[1750949086253,9.10010704,143.33,143.28,6.9761]
[1750949086556,6.9753,143.3,143.28,6.9761]
[1750949088449,11.43566077,143.31,143.29,6.9756]
[1750949089748,11.43566077,143.31,143.28,6.976]
[1750949090156,11.43566077,143.31,143.24,50.47243324]
[1750949091259,11.43566077,143.31,143.28,6.9759]
[1750949091557,11.43566077,143.31,143.24,50.47243324]
[1750949091855,11.43566077,143.31,143.28,6.9758]
[1750949092159,4.46066077,143.31,143.28,6.9758]
[1750949092551,4.46066077,143.31,143.24,50.47243324]
[1750949092856,9.13566077,143.33,143.25,8.45177247]
[1750949093247,9.13566077,143.33,143.29,6.9754]
[1750949093452,9.13566077,143.33,143.25,8.45177247]
[1750949093849,16.10956077,143.33,143.3,6.975]
[1750949094354,11.6489,143.33,143.31,6.9747]
[1750949094550,42.02066077,143.35,143.28,4.46066077]
[1750949094956,6.9734,143.34,143.32,6.9742]
[1750949095354,42.02066077,143.35,143.28,37.58]
[1750949095558,42.02066077,143.35,143.31,6.9745]
[1750949096048,6.9736,143.34,143.31,6.9745]
[1750949098460,42.02066077,143.35,143.32,6.9741]
[1750949099562,6.9734,143.34,143.32,6.9741]
[1750949100059,6.9734,143.34,143.31,6.9745]
[1750949100267,42.02066077,143.35,143.28,37.58]
[1750949101058,6.9736,143.34,143.31,6.9743]
[1750949101256,6.9736,143.34,143.28,37.58]
[1750949101765,6.9736,143.34,143.32,6.9741]
[1750949103956,9.2619,143.36,143.34,6.973]
[1750949104155,4.26675387,143.38,143.33,4.46066077]
[1750949104361,4.26675387,143.39,143.33,4.46066077]
[1750949104560,4.95011682,143.38,143.33,4.46066077]
[1750949104868,9.50589418,143.4,143.32,37.58]
[1750949105071,11.43316077,143.36,143.33,6.9735]
[1750949105269,4.46066077,143.36,143.32,37.58]
[1750949105467,4.46066077,143.34,143.29,46.03177247]
[1750949105768,11.43416077,143.34,143.29,37.58]
[1750949106161,11.43416077,143.34,143.31,6.9745]
[1750949108071,4.46066077,143.34,143.29,37.58]
[1750949108273,4.46066077,143.34,143.27,139.38]
[1750949108463,6.974,143.33,143.27,139.38]
[1750949108664,6.974,143.33,143.27,143.84066077]
[1750949108861,6.974,143.33,143.3,6.9749]
[1750949109364,4.46066077,143.34,143.27,143.84066077]
[1750949109365,6.9744,143.32,143.27,143.84066077]
[1750949109565,6.9744,143.32,143.29,6.9755]
[1750949109960,6.9741,143.33,143.27,143.84066077]
[1750949110165,41.94066077,143.34,143.3,6.975]
[1750949110365,41.94066077,143.34,143.26,50.39243324]
[1750949110573,6.9751,143.31,143.26,37.48]
[1750949110765,4.46066077,143.32,143.26,37.48]
[1750949110966,4.46066077,143.32,143.26,45.93177247]
[1750949111171,11.43536077,143.32,143.26,45.93177247]
[1750949111369,4.46066077,143.32,143.26,50.39243324]
[1750949111671,6.974,143.33,143.26,50.39243324]
[1750949111871,6.974,143.33,143.3,6.9748]
[1750949112280,6.9743,143.32,143.3,6.9748]
[1750949112573,6.9743,143.32,143.29,6.9755]
[1750949112769,6.9752,143.3,143.26,45.93177247]
[1750949112971,4.46066077,143.3,143.23,655.29323324]
[1750949113874,6.976,143.29,143.27,6.9766]
[1750949114074,6.976,143.29,143.23,655.29323324]
[1750949114475,11.43606077,143.3,143.23,655.29323324]
[1750949114875,11.43606077,143.3,143.27,6.9765]
[1750949116174,6.9749,143.31,143.28,6.9762]
[1750949116379,4.94060912,143.32,143.25,12.91243324]
[1750949116579,4.46066077,143.33,143.26,8.45177247]
[1750949116768,6.9746,143.32,143.29,6.9755]
[1750949117279,6.9746,143.32,143.3,6.9751]
[1750949117472,6.9748,143.31,143.25,12.91243324]
[1750949117673,6.9748,143.31,143.25,4.46066077]
[1750949117878,4.9412514,143.32,143.25,4.46066077]
[1750949118180,4.46066077,143.33,143.25,12.91243324]
[1750949118376,4.46066077,143.33,143.28,6.9759]
[1750949118575,4.46066077,143.33,143.25,12.91243324]
[1750949118772,6.9749,143.31,143.25,12.91243324]
[1750949118974,6.9749,143.31,143.29,6.9756]
[1750949119381,6.9745,143.32,143.29,6.9756]
[1750949120480,4.46066077,143.33,143.25,12.91243324]
[1750949120682,4.46066077,143.31,143.25,12.91243324]
[1750949120883,4.46066077,143.31,143.25,4.46066077]
[1750949121077,4.46066077,143.31,143.24,8.45177247]
[1750949121271,4.46066077,143.29,143.23,45.93177247]
[1750949121973,39.7712,143.3,143.23,45.93177247]
[1750949121974,4.46066077,143.27,143.23,45.93177247]
[1750949122278,11.43776077,143.27,143.24,6.9781]
[1750949122781,11.43776077,143.27,143.25,6.9776]
[1750949122782,4.46066077,143.27,143.25,6.9776]
[1750949122978,39.7712,143.3,143.23,41.96066077]
[1750949123180,37.48,143.3,143.25,4.46066077]
[1750949123385,37.48,143.3,143.24,4.46066077]
[1750949123573,6.89016077,143.32,143.24,4.46066077]
[1750949123773,6.89016077,143.32,143.28,6.976]
[1750949123973,6.9752,143.31,143.28,6.976]
[1750949124189,6.9752,143.31,143.25,8.45177247]
[1750949124378,6.9752,143.31,143.28,6.9758]
[1750949124779,6.9752,143.31,143.25,8.45177247]
[1750949124980,6.9755,143.3,143.27,6.9765]
[1750949126187,6.9755,143.3,143.24,12.91243324]
[1750949126988,6.9758,143.29,143.26,6.9768]
[1750949127489,6.9765,143.28,143.25,6.9774]
[1750949128199,6.9768,143.27,143.25,6.9774]
[1750949128701,6.9768,143.27,143.24,6.978]
[1750949129500,6.9768,143.27,143.25,6.9775]
[1750949129893,6.9773,143.26,143.23,37.5]
[1750949130093,6.9773,143.26,143.23,6.9785]
[1750949130290,4.46066077,143.28,143.22,8.45177247]
[1750949130499,6.977,143.27,143.21,8.45177247]
[1750949130698,4.46066077,143.28,143.21,8.45177247]
[1750949131301,4.46066077,143.28,143.25,6.9776]
[1750949131699,39.7605,143.29,143.22,4.46066077]
[1750949131894,39.7605,143.29,143.24,4.46066077]
[1750949132095,39.7605,143.29,143.24,10.84153308]
[1750949132294,46.7365,143.29,143.26,6.9768]
[1750949132506,39.7605,143.29,143.24,10.84153308]
[1750949133006,4.46066077,143.28,143.24,6.38087231]
[1750949133205,4.88380215,143.31,143.24,10.84153308]
[1750949133398,41.7171557,143.33,143.28,4.46066077]
[1750949133599,37.5,143.33,143.28,4.46066077]
[1750949133802,6.9741,143.33,143.27,4.46066077]
[1750949133993,6.9741,143.33,143.27,10.84153308]
[1750949134200,2.464,143.34,143.27,10.84153308]
[1750949134392,37.5,143.42,143.28,48.3360762]
[1750949134598,11.13545011,143.41,143.33,4.45520389]
[1750949134799,4.21624622,143.4,143.33,4.45520389]
[1750949135097,4.21624622,143.4,143.36,6.9723]
[1750949135298,6.91300389,143.39,143.32,37.5]
[1750949135502,11.12843313,143.39,143.32,43.88087231]
[1750949135704,6.91300389,143.39,143.32,43.88087231]
[1750949136097,6.9721,143.37,143.34,6.973]
[1750949136605,37.5,143.38,143.32,43.88087231]
[1750949136813,6.68533116,143.37,143.31,6.38087231]
[1750949137112,6.68533116,143.35,143.3,6.38087231]
[1750949137298,2.4127,143.34,143.3,6.975]
[1750949137701,6.9741,143.33,143.3,6.975]
[1750949138207,39.9127,143.34,143.26,779.42]
[1750949138408,39.9127,143.34,143.26,787.87177247]
[1750949139005,6.974,143.33,143.26,787.87177247]
[1750949139205,6.68533116,143.37,143.27,6.68533116]
[1750949139403,37.4,143.38,143.31,6.68533116]
[1750949139604,37.4,143.38,143.31,52.53710363]
[1750949139806,37.4,143.38,143.31,44.08533116]
[1750949140805,37.4,143.38,143.31,37.4]
[1750949141005,37.4,143.38,143.31,44.08533116]
[1750949141407,44.3717,143.38,143.34,6.973]
[1750949142916,44.3717,143.38,143.35,6.9727]
[1750949143302,6.972,143.37,143.31,44.08533116]
[1750949143716,44.08533116,143.38,143.31,37.4]
[1750949144013,44.08533116,143.38,143.28,37.38]
[1750949144014,6.68533116,143.36,143.28,37.38]
[1750949144210,2.2584,143.35,143.31,6.9745]
[1750949144409,6.9735,143.34,143.31,6.9745]
[1750949144716,2.2584,143.35,143.3,6.975]
[1750949144909,6.9738,143.33,143.28,37.38]
[1750949145305,6.9738,143.33,143.3,6.975]
[1750949145614,6.9738,143.33,143.28,37.38]
[1750949146116,6.9735,143.34,143.31,6.9747]
[1750949146712,2.2601,143.36,143.3,6.68533116]
[1750949147108,6.9724,143.36,143.33,6.9735]
[1750949147311,37.4,143.38,143.3,6.68533116]
[1750949147507,37.4,143.38,143.32,6.68533116]
[1750949147817,37.4,143.38,143.32,44.06533116]
[1750949148018,44.06533116,143.41,143.32,44.06533116]
[1750949148217,6.9707,143.4,143.36,6.972]
[1750949148517,44.06533116,143.41,143.32,37.38]
[1750949148723,6.9717,143.38,143.32,37.38]
[1750949149216,6.9717,143.38,143.34,6.9729]
[1750949149411,6.9717,143.38,143.32,37.38]
[1750949149611,44.06533116,143.41,143.36,6.972]
[1750949150016,44.3501,143.41,143.33,6.68533116]
[1750949150211,2.2659,143.43,143.35,6.68533116]
[1750949150413,2.2659,143.43,143.37,6.68533116]
[1750949150612,9.235,143.43,143.37,6.68533116]
[1750949150817,2.2659,143.43,143.37,6.68533116]
[1750949151114,6.68533116,143.42,143.34,139.12]
[1750949151315,6.68533116,143.42,143.37,6.9716]
[1750949151518,2.2659,143.43,143.34,145.80533116]
[1750949152413,6.9696,143.42,143.34,145.80533116]
[1750949153210,6.9702,143.41,143.34,145.80533116]
[1750949153409,2.2659,143.43,143.34,6.68533116]
[1750949153809,6.9703,143.41,143.38,6.9711]
[1750949154011,2.2659,143.43,143.34,6.68533116]
[1750949154417,2.2659,143.43,143.37,6.9716]
[1750949154617,6.68533116,143.42,143.34,6.68533116]
[1750949154919,6.9711,143.39,143.36,6.972]
[1750949155130,37.38,143.41,143.33,37.38]
[1750949155618,6.9713,143.39,143.35,6.9725]
[1750949155822,6.9713,143.39,143.33,37.38]
[1750949156027,37.38,143.41,143.34,6.68533116]
[1750949156217,6.9704,143.4,143.37,6.9716]
[1750949156418,37.38,143.41,143.34,6.68533116]
[1750949156912,44.3499,143.41,143.39,6.9708]